bitfinex/quotes_ETHUSD_20250822
["timestamp","ask_amount","ask_price","bid_price","bid_amount"]
[1755865771277,0.2993,4241.2,4241.1,4.182]
[1755865771479,0.7381,4241.2,4241.1,4.182]
[1755865771679,5.35787885,4241.1,4241.0,1.814]
[1755865771914,5.35787885,4241.1,4240.4,1.814]
[1755865771915,4.34769789,4241.1,4240.4,1.814]
[1755865772216,2.7967442,4241.0,4240.5,4.181]
[1755865772399,2.35799566,4240.9,4240.6,0.21832508]
[1755865772718,0.2993,4240.7,4240.5,4.181]
[1755865772923,0.2993,4240.7,4240.6,0.21832713]
[1755865772924,2.65740125,4240.7,4240.6,0.21832713]
[1755865773216,0.36898184,4241.0,4240.7,2.35810125]
[1755865773415,0.00020001,4242.2,4241.7,2.35754532]
[1755865773640,0.00020001,4242.2,4241.7,8.91721571]
[1755865774012,0.00020001,4242.2,4241.7,9.36891571]
[1755865775933,0.00020001,4242.2,4241.7,9.54158842]
[1755865776337,0.00020001,4242.2,4241.7,9.53758842]
[1755865776710,0.00020001,4242.2,4241.7,9.53796392]
[1755865778037,0.00020001,4242.2,4241.7,9.53296392]
[1755865778538,0.00020001,4242.2,4241.7,9.53096392]
[1755865778957,0.17770002,4241.8,4241.7,0.21884589]
[1755865779155,2.35799004,4240.9,4240.8,0.004]
[1755865779467,12.72968922,4240.9,4240.8,0.004]
[1755865779780,14.86953875,4240.9,4240.8,0.004]
[1755865781039,19.35665279,4240.9,4240.8,0.004]
[1755865781850,2.35843494,4240.1,4240.0,0.004]
[1755865782063,2.35843494,4240.1,4238.8,0.02]
[1755865782064,2.35882436,4239.4,4238.8,0.02]
[1755865782213,14.84314906,4238.9,4238.8,0.02]
[1755865782415,3.0,4238.9,4238.8,0.02]
[1755865782613,5.35910259,4238.9,4238.8,0.02]
[1755865782823,3.0,4238.9,4238.8,0.02]
[1755865783747,5.35910259,4238.9,4238.8,0.02]
[1755865784245,5.65390259,4238.9,4238.8,4.248]
[1755865784420,3.2948,4238.9,4238.8,4.248]
[1755865784746,5.65390259,4238.9,4238.8,0.02]
[1755865785155,3.2948,4238.9,4238.8,0.02]
[1755865785452,5.65390259,4238.9,4238.8,0.02]
[1755865786417,3.2948,4238.9,4238.8,0.02]
[1755865786945,5.65390259,4238.9,4238.8,0.02]
[1755865787926,3.2948,4238.9,4238.8,0.02]
[1755865788517,5.65390259,4238.9,4238.8,0.02]
[1755865789533,3.2948,4238.9,4238.8,0.02]
[1755865789741,5.65390259,4238.9,4238.8,0.02]
[1755865789960,3.2948,4238.9,4238.8,0.02]
[1755865790156,5.65390259,4238.9,4238.8,0.02]
[1755865790866,3.0,4238.9,4238.8,0.02]
[1755865791366,5.35910259,4238.9,4238.8,0.02]
[1755865791570,5.65390259,4238.9,4238.8,0.02]
[1755865791778,5.65390259,4238.9,4238.8,0.024]
[1755865791944,6.45519242,4238.9,4238.8,0.024]
[1755865792144,18.46384148,4238.9,4238.8,0.024]
[1755865792968,18.46304148,4238.9,4238.8,0.024]
[1755865797466,18.00274148,4238.9,4238.8,0.024]
[1755865799687,5.35830259,4238.9,4238.8,0.024]
[1755865800872,2.9992,4238.9,4238.8,0.024]
[1755865801072,5.35830259,4238.9,4238.8,0.024]
[1755865801270,5.65310259,4238.9,4238.8,0.024]
[1755865801575,5.35830259,4238.9,4238.8,0.024]
[1755865802362,6.42483326,4238.9,4238.8,0.024]
[1755865802654,6.13003326,4238.9,4238.8,0.024]
[1755865802982,2.9992,4238.9,4238.8,0.024]
[1755865803172,5.35830259,4238.9,4238.8,0.024]
[1755865803369,10.13980259,4238.9,4238.8,0.024]
[1755865803601,21.68815165,4238.9,4238.8,0.024]
[1755865804483,5.49970259,4238.9,4238.8,0.024]
[1755865805404,6.65558139,4238.9,4238.8,0.024]
[1755865805919,7.11268139,4238.9,4238.8,0.024]
[1755865806423,2.35960358,4238.0,4237.9,0.004]
[1755865806904,2.50100358,4238.0,4237.9,0.004]
[1755865807109,3.3273577,4238.0,4237.9,0.004]
[1755865807280,8.68949733,4238.0,4237.9,0.004]
[1755865807913,8.68949733,4238.0,4236.2,0.4511]
[1755865807914,0.66,4237.8,4236.2,0.4511]
[1755865808092,3.66,4236.8,4235.8,0.02]
[1755865808293,3.0,4236.4,4235.8,0.02]
[1755865808467,2.3606733,4236.1,4235.8,0.02]
[1755865808671,3.0,4236.1,4235.8,0.02]
[1755865808981,5.66257338,4235.9,4235.8,0.02]
[1755865809581,5.36077338,4235.9,4235.8,0.02]
[1755865810104,3.0,4235.9,4235.8,0.02]
[1755865810274,5.36077338,4235.9,4235.8,0.02]
[1755865811299,5.66257338,4235.9,4235.8,0.02]
[1755865811475,5.36077338,4235.9,4235.8,0.02]
[1755865813521,6.55091884,4235.9,4235.8,0.02]
[1755865813722,6.84591884,4235.9,4235.8,0.02]
[1755865814503,3.295,4235.9,4235.8,0.02]
[1755865814810,5.36077338,4235.9,4235.8,0.02]
[1755865815026,5.65577338,4235.9,4235.8,0.02]
[1755865815225,10.28687338,4235.9,4235.8,0.02]
[1755865815722,22.53922429,4235.9,4235.8,0.02]
[1755865815921,25.11522794,4235.9,4235.8,0.02]
[1755865816224,25.11522794,4235.9,4235.8,1e-08]
[1755865816225,55.11522794,4235.9,4235.8,1e-08]
[1755865816605,55.46451843,4235.9,4235.8,1e-08]
[1755865816921,3.02105208,4235.4,4235.3,0.004]
[1755865817126,10.70330434,4235.4,4235.3,0.004]
[1755865817326,11.79608019,4235.4,4235.3,0.004]
[1755865817532,12.24888019,4235.4,4235.3,0.004]
[1755865818401,12.59817068,4235.4,4235.3,0.004]
[1755865819427,12.24888019,4235.4,4235.3,0.004]
[1755865820716,42.81125507,4235.4,4235.3,0.004]
[1755865820917,43.18078977,4235.4,4235.3,0.004]
[1755865821116,6.02127508,4235.0,4234.9,0.004]
[1755865821318,11.66125173,4235.0,4234.9,0.004]
[1755865821517,12.46734222,4235.0,4234.9,0.004]
[1755865821716,12.11805173,4235.0,4234.9,0.004]
[1755865822297,10.99925173,4235.0,4234.9,0.004]
[1755865822610,5.36127508,4235.0,4234.9,0.7782]
[1755865822812,9.52427508,4235.0,4234.9,0.7782]
[1755865823023,9.52427508,4235.0,4234.9,0.3054]
[1755865823600,1.67596281,4235.4,4234.9,0.7782]
[1755865823601,6.52510783,4235.3,4234.9,0.7782]
[1755865823827,0.3695347,4235.4,4235.0,0.49641275]
[1755865824029,2.73058678,4235.4,4235.3,0.3014]
[1755865824228,2.73058678,4235.4,4235.3,0.7742]
[1755865824229,5.73058678,4235.4,4235.3,0.7742]
[1755865824631,5.73058678,4235.4,4235.3,0.3014]
[1755865824932,2.36110783,4235.3,4234.9,0.004]
[1755865825234,2.36127508,4235.0,4234.9,0.004]
[1755865826037,2.36127508,4235.0,4234.9,0.3054]
[1755865826606,2.36127508,4235.0,4234.9,0.004]
[1755865826798,2.36127508,4235.0,4234.9,0.3054]
[1755865827203,2.36127508,4235.0,4234.9,0.004]
[1755865827421,10.98058738,4235.0,4234.9,0.004]
[1755865827634,12.09428738,4235.0,4234.9,0.004]
[1755865829604,11.64058738,4235.0,4234.9,0.004]
[1755865829807,3.0,4235.0,4234.9,0.3054]
[1755865830010,5.36127508,4235.0,4234.9,0.7782]
[1755865830228,3.0,4235.0,4234.9,0.7782]
[1755865830713,0.3695347,4235.4,4234.9,0.7782]
[1755865830714,2.73063068,4235.4,4234.9,0.7782]
[1755865830931,6.88660575,4235.4,4235.0,0.4728]
[1755865831240,5.73060575,4235.4,4235.3,0.3014]
[1755865831539,5.73060575,4235.4,4235.3,0.7742]
[1755865831940,0.3695347,4235.4,4235.3,0.7742]
[1755865839434,0.3695347,4235.4,4234.9,0.004]
[1755865839435,2.36116358,4235.2,4234.9,0.004]
[1755865839750,2.36127508,4235.0,4234.9,0.004]
[1755865840447,2.26127508,4235.0,4234.9,0.004]
[1755865841161,2.55857508,4235.0,4234.9,0.004]
[1755865841346,6.81265256,4235.0,4234.9,0.004]
[1755865842029,6.81185256,4235.0,4234.9,0.004]
[1755865842436,7.47185256,4235.0,4234.9,0.004]
[1755865843231,7.82114305,4235.0,4234.9,0.004]
[1755865844738,36.02133084,4234.9,4234.8,1e-08]
[1755865845061,40.20127647,4234.9,4234.8,1e-08]
[1755865845357,3.0215539,4234.5,4234.4,0.004]
[1755865845559,22.397443,4234.5,4234.4,0.004]
[1755865845752,52.397443,4234.5,4234.4,0.004]
[1755865846063,52.859543,4234.5,4234.4,0.004]
[1755865846272,55.22168263,4234.5,4234.4,0.004]
[1755865847359,3.66,4234.2,4234.0,1e-08]
[1755865847560,12.62536749,4234.1,4234.0,1e-08]
[1755865847859,43.08746749,4234.1,4234.0,1e-08]
[1755865848065,43.45710846,4234.1,4234.0,1e-08]
[1755865848265,2.36188856,4233.9,4233.8,1e-08]
[1755865848559,39.79618856,4233.9,4233.8,1e-08]
[1755865848734,40.25828856,4233.9,4233.8,1e-08]
[1755865849148,3.02200014,4233.7,4233.6,1e-08]
[1755865849351,0.66,4233.2,4232.8,0.02]
[1755865849548,6.31974654,4232.9,4232.8,0.02]
[1755865849754,40.81503703,4232.9,4232.8,0.02]
[1755865849973,41.6468967,4232.9,4232.8,0.02]
[1755865850177,3.71905016,4232.9,4232.8,0.309]
[1755865850354,3.71905016,4232.9,4232.8,0.7478]
[1755865850355,0.36975967,4232.9,4232.8,0.7478]
[1755865852335,0.36975967,4232.9,4232.8,3.11030236]
[1755865852540,4.145,4233.8,4232.9,2.36243912]
[1755865852769,5.36188528,4234.0,4233.7,0.289]
[1755865852971,2.36190008,4233.9,4233.7,0.289]
[1755865853269,2.36190008,4233.9,4233.8,0.4388]
[1755865853476,2.36194435,4233.8,4233.0,0.4388]
[1755865853659,2.36194435,4233.8,4232.8,0.02]
[1755865853660,2.36243234,4233.0,4232.8,0.02]
[1755865853977,3.0,4233.3,4232.9,0.7278]
[1755865854277,6.50501886,4233.7,4233.0,0.4388]
[1755865854573,6.50501886,4233.7,4233.6,0.289]
[1755865854574,9.50500014,4233.7,4233.6,0.289]
[1755865854780,3.0,4233.7,4233.6,0.289]
[1755865854936,3.36962224,4233.7,4233.6,0.7278]
[1755865855260,2.36225744,4233.3,4233.1,0.4388]
[1755865855443,2.36225744,4233.3,4233.2,0.289]
[1755865856471,0.77243896,4233.3,4232.8,0.02]
[1755865856682,0.36962224,4233.7,4233.2,0.289]
[1755865856967,3.0,4233.5,4233.3,0.4388]
[1755865857173,2.36216752,4233.4,4233.3,0.4388]
[1755865857469,2.36216752,4233.4,4233.3,0.289]
[1755865857686,2.36214549,4233.5,4232.8,0.02]
[1755865857842,2.36229125,4233.2,4232.9,0.4388]
[1755865858038,2.36229125,4233.2,4233.1,0.289]
[1755865858451,2.36229125,4233.2,4233.1,0.7278]
[1755865858843,2.36229125,4233.2,4233.1,0.293]
[1755865859467,2.36227869,4233.3,4233.1,0.293]
[1755865859777,2.36227912,4233.2,4233.1,0.7318]
[1755865860162,0.36963887,4233.6,4233.1,0.7318]
[1755865860478,3.36963887,4233.6,4233.2,0.4388]
[1755865860640,5.7316948,4233.6,4233.5,0.289]
[1755865860841,3.36963887,4233.6,4233.5,0.289]
[1755865861183,2.36227912,4233.2,4233.1,0.004]
[1755865861366,2.36222865,4233.3,4233.1,0.293]
[1755865861566,0.36963887,4233.6,4233.2,0.4388]
[1755865861767,0.36963887,4233.6,4233.5,0.289]
[1755865862277,0.36963887,4233.6,4233.5,0.7278]
[1755865862772,0.36963887,4233.6,4233.5,3.08991172]
[1755865862972,0.36963887,4233.6,4233.5,3.11353283]
[1755865863155,0.36963887,4233.6,4233.5,3.08991172]
[1755865863474,0.001,4234.9,4233.8,2.36193097]
[1755865863694,0.001,4234.9,4234.7,0.289]
[1755865864045,2.36238659,4234.9,4234.7,0.289]
[1755865864375,0.38951692,4234.8,4234.7,0.7278]
[1755865864582,2.75090352,4234.8,4234.7,0.7278]
[1755865864744,1.19813501,4234.8,4234.1,1.817]
[1755865864964,3.0,4234.7,4234.1,1.817]
[1755865865162,3.0,4234.7,4233.7,0.4388]
[1755865865364,2.36166123,4234.4,4233.7,0.4388]
[1755865865599,2.36167323,4234.3,4233.7,0.4388]
[1755865865905,2.36167323,4234.3,4232.9,0.4388]
[1755865865906,0.2973,4233.8,4232.9,0.4388]
[1755865866203,2.36220933,4233.4,4232.9,0.4388]
[1755865866579,2.36140933,4233.4,4232.9,0.4388]
[1755865866774,3.0,4234.1,4232.9,0.4388]
[1755865866979,1.06757015,4234.0,4232.9,0.4388]
[1755865867185,2.36227912,4233.2,4232.8,0.02]
[1755865867529,5.65957912,4233.2,4232.8,0.02]
[1755865867832,6.12167912,4233.2,4232.8,0.02]
[1755865867990,10.25367912,4233.2,4232.8,0.02]
[1755865868197,12.24632284,4233.2,4232.8,0.02]
[1755865868724,12.61603683,4233.2,4232.8,0.02]
[1755865869829,6.02929311,4233.2,4232.8,0.02]
[1755865869995,3.36971399,4233.2,4233.1,0.3081]
[1755865870189,0.36971399,4233.2,4233.1,0.7582]
[1755865870822,0.36971399,4233.2,4233.1,3.12053493]
[1755865871193,0.36971399,4233.2,4233.1,4.93753493]
[1755865872130,0.36971399,4233.2,4233.1,9.07753493]
[1755865872305,0.001,4234.9,4233.3,2.36222332]
[1755865872625,0.001,4234.9,4233.4,0.02362167]
[1755865872930,0.36955646,4234.5,4233.1,1.821]
[1755865873113,2.36216798,4233.4,4233.1,1.821]
[1755865873312,2.361777,4234.1,4233.3,0.3041]
[1755865873625,5.36178931,4234.1,4233.3,0.3041]
[1755865873929,2.84910426,4234.4,4233.4,0.4501]
[1755865873930,0.001,4234.4,4233.4,0.4501]
[1755865874095,0.36959716,4234.0,4233.7,2.361994]
[1755865874423,0.36959716,4234.0,4233.9,0.3041]
[1755865875204,0.36959716,4234.0,4233.4,4.139]
[1755865875403,0.36959716,4234.0,4233.3,0.4501]
[1755865875634,2.36219969,4233.4,4233.1,1.821]
[1755865875824,0.36959716,4234.0,4233.1,1.821]
[1755865875825,2.36225617,4233.3,4233.1,1.821]
[1755865876024,2.36217794,4233.4,4233.1,1.821]
[1755865876224,2.36227912,4233.2,4233.1,0.004]
[1755865876832,0.36962543,4233.3,4233.1,0.3081]
[1755865877835,0.36962543,4233.3,4233.2,0.4501]
[1755865878039,0.36962543,4233.3,4233.2,3.14010191]
[1755865878750,0.36882543,4233.3,4233.2,0.7542]
[1755865878942,0.36882543,4233.3,4233.2,3.11647912]
[1755865879146,0.36882543,4233.3,4233.2,0.7542]
[1755865880256,0.36882543,4233.3,4233.2,0.3041]
[1755865880559,0.36882543,4233.3,4233.1,0.004]
[1755865880854,2.36227912,4233.2,4233.1,0.004]
[1755865881371,2.73105615,4233.3,4233.1,0.004]
[1755865881654,2.67147912,4233.2,4233.1,0.004]
[1755865881855,6.21182641,4233.2,4233.1,0.004]
[1755865882057,6.66632641,4233.2,4233.1,0.004]
[1755865883232,10.79932641,4233.2,4233.1,0.004]
[1755865883572,13.6256169,4233.2,4233.1,0.004]
[1755865884235,5.67147912,4233.2,4233.1,0.004]
[1755865886568,9.81347912,4233.2,4233.1,0.004]
[1755865886753,9.80947912,4233.2,4233.1,0.004]
[1755865886957,9.80847912,4233.2,4233.1,0.004]
[1755865887133,9.80847912,4233.2,4230.3,1.68456597]
[1755865887134,0.66,4233.1,4230.3,1.68456597]
[1755865887335,5.67220479,4231.9,4230.8,0.02]
[1755865887531,10.49520479,4231.9,4230.8,0.02]
[1755865887764,11.31954969,4231.9,4230.8,0.02]
[1755865888556,7.15654969,4231.9,4230.8,0.02]
[1755865888759,12.49828465,4231.9,4230.8,0.02]
[1755865888973,12.49828465,4231.9,4231.8,1e-08]
[1755865889267,42.86438226,4231.9,4231.8,1e-08]
[1755865889683,12.86238226,4231.9,4231.8,1e-08]
[1755865890242,8.70238226,4231.9,4231.8,1e-08]
[1755865890461,12.86138226,4231.9,4231.8,1e-08]
[1755865890862,12.86058226,4231.9,4231.8,1e-08]
[1755865891174,42.86058226,4231.9,4231.8,1e-08]
[1755865891752,38.70158226,4231.9,4231.8,1e-08]
[1755865891957,42.85858226,4231.9,4231.8,1e-08]
[1755865892865,42.03598465,4231.9,4231.8,1e-08]
[1755865893071,12.03598465,4231.9,4231.8,1e-08]
[1755865893250,12.49048465,4231.9,4231.8,1e-08]
[1755865894176,12.48948465,4231.9,4231.8,1e-08]
[1755865894376,6.91258465,4231.9,4231.8,1e-08]
[1755865894675,11.06558465,4231.9,4231.8,1e-08]
[1755865895596,11.37478465,4231.9,4231.8,1e-08]
[1755865895891,12.85538226,4231.9,4231.8,1e-08]
[1755865896401,12.39888226,4231.9,4231.8,1e-08]
[1755865896958,12.85338226,4231.9,4231.8,1e-08]
[1755865897689,12.39888226,4231.9,4231.8,1e-08]
[1755865898090,12.39888226,4231.9,4230.8,0.42647001]
[1755865898091,6.02306063,4231.8,4230.8,0.42647001]
[1755865898390,2.36353257,4231.0,4230.8,0.42647001]
[1755865898575,2.36353354,4231.0,4230.9,0.308]
[1755865898788,7.147,4231.0,4230.9,0.308]
[1755865898981,3.36983177,4231.0,4230.9,0.308]
[1755865899173,9.87933921,4231.0,4230.9,0.308]
[1755865899486,0.36983177,4231.0,4230.9,0.308]
[1755865899687,2.73333921,4231.0,4230.9,0.308]
[1755865900065,0.36983177,4231.0,4230.9,0.727]
[1755865900390,2.73333921,4231.0,4230.9,0.727]
[1755865900991,2.73333921,4231.0,4230.9,0.278]
[1755865901856,2.36373091,4230.6,4230.5,0.449]
[1755865902057,6.50573091,4230.6,4230.5,0.757]
[1755865902259,6.50573091,4230.6,4230.5,0.308]
[1755865902464,2.36398387,4230.2,4230.0,0.449]
[1755865902685,2.36398387,4230.2,4230.1,0.308]
[1755865902879,2.36398387,4230.2,4230.1,0.757]
[1755865903087,2.73305611,4230.2,4230.1,0.757]
[1755865903887,0.36987224,4230.2,4230.1,0.757]
[1755865904992,2.73382666,4230.2,4230.1,0.757]
[1755865905214,0.36987224,4230.2,4230.1,0.757]
[1755865906304,4.50587224,4230.2,4230.1,0.757]
[1755865906707,6.86982666,4230.2,4230.1,0.757]
[1755865906910,4.50587224,4230.2,4230.1,0.757]
[1755865907082,4.50587224,4230.2,4230.1,0.308]
[1755865907279,2.3640103,4230.1,4230.0,0.004]
[1755865907615,6.46947754,4230.1,4230.0,0.004]
[1755865907781,11.05447754,4230.1,4230.0,0.004]
[1755865908229,10.2601103,4230.1,4230.0,0.004]
[1755865908526,10.2471103,4230.1,4230.0,0.004]
[1755865908853,11.72700183,4230.1,4230.0,0.004]
[1755865908983,11.82181083,4230.1,4230.0,0.004]
[1755865909386,0.36987224,4230.2,4230.0,0.761]
[1755865909679,0.36987224,4230.2,4230.1,0.449]
[1755865909911,0.36987224,4230.2,4230.1,0.757]
[1755865910795,0.36987224,4230.2,4230.1,3.1210103]
[1755865911903,0.36987224,4230.2,4230.1,0.757]
[1755865912283,2.73382666,4230.2,4230.1,0.308]
[1755865912482,3.36987224,4230.2,4230.1,0.757]
[1755865912915,3.36987224,4230.2,4230.0,0.004]
[1755865912916,3.0,4230.1,4230.0,0.004]
[1755865913213,2.3640103,4230.1,4230.0,0.004]
[1755865913413,4.13608161,4230.1,4230.0,0.004]
[1755865913622,11.28508161,4230.1,4230.0,0.004]
[1755865913786,11.72108161,4230.1,4230.0,0.004]
[1755865915628,6.82418161,4230.1,4230.0,0.004]
[1755865915811,9.5112103,4230.1,4230.0,0.004]
[1755865916014,3.0,4230.1,4230.0,0.312]
[1755865916207,9.5090103,4230.1,4230.0,0.312]
[1755865916612,9.5090103,4230.1,4230.0,0.004]
[1755865916936,9.8201103,4230.1,4230.0,0.004]
[1755865917138,11.07550199,4230.1,4230.0,0.004]
[1755865917434,11.51150199,4230.1,4230.0,0.004]
[1755865917819,11.07950199,4230.1,4230.0,0.004]
[1755865918014,9.5120103,4230.1,4230.0,0.761]
[1755865918222,9.5120103,4230.1,4230.0,0.312]
[1755865918422,7.148,4230.1,4230.0,0.004]
[1755865918626,9.5120103,4230.1,4230.0,0.004]
[1755865919442,3.0,4230.1,4230.0,0.312]
[1755865919647,7.149,4230.1,4230.0,0.761]
[1755865919956,3.0,4230.1,4230.0,0.761]
[1755865920163,4.51787224,4230.2,4230.0,0.761]
[1755865920375,4.51787224,4230.2,4230.1,0.449]
[1755865920526,4.51787224,4230.2,4230.1,0.757]
[1755865920960,7.51787224,4230.2,4230.1,0.757]
[1755865921278,0.36987224,4230.2,4230.1,0.757]
[1755865921458,0.001,4230.7,4230.1,0.757]
[1755865921630,0.001,4230.7,4230.6,2.36373091]
[1755865921836,0.001,4230.7,4230.6,0.308]
[1755865922137,0.001,4230.7,4230.6,3.12073091]
[1755865923577,0.001,4230.7,4230.6,0.757]
[1755865923982,0.001,4230.7,4230.6,3.12073091]
[1755865924631,0.001,4230.7,4230.0,0.004]
[1755865924827,4.144,4230.7,4230.0,0.004]
[1755865925045,2.36377264,4230.6,4230.0,0.004]
[1755865925264,0.001,4230.7,4230.0,0.004]
[1755865925456,0.001,4230.7,4230.6,0.308]
[1755865925842,2.36390232,4230.3,4230.0,0.004]
[1755865926057,4.143,4230.3,4230.0,0.004]
[1755865926254,2.6751103,4230.1,4230.0,0.004]
[1755865926441,5.6751103,4230.1,4230.0,0.004]
[1755865926855,6.1111103,4230.1,4230.0,0.004]
[1755865927031,7.40990531,4230.1,4230.0,0.004]
[1755865927433,3.0,4230.1,4230.0,0.004]
[1755865927633,0.36990716,4230.3,4230.0,0.761]
[1755865927861,0.36990716,4230.3,4230.1,0.449]
[1755865928061,3.0335057,4230.3,4230.0,0.004]
[1755865928236,2.3640103,4230.1,4230.0,0.004]
[1755865928433,0.36990716,4230.3,4230.0,0.004]
[1755865928662,2.3640103,4230.1,4230.0,0.004]
[1755865929465,2.6637103,4230.1,4230.0,0.004]
[1755865929763,6.61786278,4230.1,4230.0,0.004]
[1755865929966,6.31816278,4230.1,4230.0,0.004]
[1755865930269,6.61786278,4230.1,4230.0,0.004]
[1755865930657,7.06146278,4230.1,4230.0,0.004]
[1755865931047,6.61786278,4230.1,4230.0,0.004]
[1755865931449,9.5050103,4230.1,4230.0,0.004]
[1755865931962,3.0,4230.1,4230.0,0.3167]
[1755865932274,3.0,4230.1,4230.0,0.7808]
[1755865932772,4.14,4230.1,4230.0,0.7808]
[1755865932937,0.36990716,4230.3,4230.0,0.7808]
[1755865933141,3.36990716,4230.3,4230.1,0.4641]
[1755865933337,3.36990716,4230.3,4230.2,0.3127]
[1755865933978,3.36990716,4230.3,4230.0,0.004]
[1755865933979,2.3640103,4230.1,4230.0,0.004]
[1755865934150,9.7118103,4230.1,4230.0,0.004]
[1755865934350,10.1507103,4230.1,4230.0,0.004]
[1755865934763,0.46470916,4230.3,4230.0,0.3167]
[1755865934963,0.36990716,4230.3,4230.1,0.4877401]
[1755865935169,2.7338057,4230.3,4230.2,0.7768]
[1755865935375,0.36990716,4230.3,4230.0,0.004]
[1755865935550,0.36990716,4230.3,4230.2,0.3127]
[1755865935890,4.50890716,4230.3,4230.2,0.80043954]
[1755865936085,0.36990716,4230.3,4230.2,0.7768]
[1755865936385,0.36990716,4230.3,4230.2,0.3127]
[1755865936775,4.51290716,4230.3,4230.0,0.004]
[1755865936976,6.8768057,4230.3,4230.2,0.3127]
[1755865937184,6.8768057,4230.3,4230.0,0.004]
[1755865937377,4.51290716,4230.3,4230.0,0.004]
[1755865937579,0.51764083,4229.9,4229.8,0.02]
[1755865938682,4.65964083,4229.9,4229.8,0.3327]
[1755865939953,4.65884083,4229.9,4229.8,0.3327]
[1755865940563,7.02296291,4229.9,4229.8,0.3327]
[1755865941086,7.02296291,4229.9,4229.8,0.02]
[1755865941293,10.84421933,4229.9,4229.8,0.02]
[1755865941596,7.48168657,4229.9,4229.8,0.02]
[1755865941760,7.14581933,4229.9,4229.8,0.02]
[1755865942162,11.28381933,4229.9,4229.8,0.02]
[1755865942360,6.18066291,4229.9,4229.8,0.02]
[1755865942588,10.01896291,4229.9,4229.8,0.02]
[1755865942798,10.01896291,4229.9,4229.8,0.3327]
[1755865942799,0.51684083,4229.9,4229.8,0.3327]
[1755865943099,0.51684083,4229.9,4229.8,0.8008]
[1755865943100,4.65484083,4229.9,4229.8,0.8008]
[1755865943286,7.01896291,4229.9,4229.8,0.024]
[1755865943601,12.01014119,4229.9,4229.8,0.024]
[1755865943896,11.56654119,4229.9,4229.8,0.024]
[1755865944099,10.02096291,4229.9,4229.8,0.3367]
[1755865944265,10.01996291,4229.9,4229.8,0.8008]
[1755865944671,10.01996291,4229.9,4229.8,0.3367]
[1755865944873,7.65584083,4229.9,4229.8,0.8008]
[1755865945195,10.31966291,4229.9,4229.8,0.024]
[1755865945395,12.07610111,4229.9,4229.8,0.024]
[1755865945771,11.63250111,4229.9,4229.8,0.024]
[1755865945971,6.18066291,4229.9,4229.8,0.024]
[1755865946166,10.02396291,4229.9,4229.8,0.024]
[1755865946411,10.32366291,4229.9,4229.8,0.024]
[1755865946899,10.76726291,4229.9,4229.8,0.024]
[1755865947802,10.32266291,4229.9,4229.8,0.024]
[1755865948097,12.0834433,4229.9,4229.8,0.024]
[1755865948489,7.9414433,4229.9,4229.8,0.024]
[1755865948687,5.88096291,4229.9,4229.8,0.024]
[1755865948998,10.32166291,4229.9,4229.8,0.024]
[1755865949202,10.76526291,4229.9,4229.8,0.024]
[1755865951620,10.76526291,4229.9,4229.8,1e-08]
[1755865952118,11.10033015,4229.9,4229.8,1e-08]
[1755865952282,44.12246978,4229.9,4229.8,1e-08]
[1755865952483,44.33663971,4229.9,4229.8,1e-08]
[1755865953012,45.17275929,4229.9,4229.5,1e-08]
[1755865953212,6.02428976,4229.6,4229.5,1e-08]
[1755865953413,11.123338,4229.6,4229.5,1e-08]
[1755865953621,9.58844408,4229.6,4229.5,1e-08]
[1755865953785,0.66,4229.4,4228.8,1e-08]
[1755865954116,6.32438112,4228.9,4228.8,1e-08]
[1755865954490,10.90498112,4228.9,4228.8,1e-08]
[1755865955023,2.36524042,4227.9,4226.8,0.02]
[1755865955236,12.0939806,4227.9,4226.9,0.4641]
[1755865955456,12.5375806,4227.9,4226.9,0.4641]
[1755865955618,12.5375806,4227.9,4226.8,0.02]
[1755865955947,12.5375806,4227.9,4227.0,0.4641]
[1755865955948,12.0929806,4227.9,4227.0,0.4641]
[1755865956306,12.5355806,4227.9,4226.8,0.4841]
[1755865956623,12.5355806,4227.9,4226.8,0.02]
[1755865956624,12.90573868,4227.9,4226.8,0.02]
[1755865956803,12.16343868,4227.9,4227.2,0.4641]
[1755865957004,12.46313868,4227.9,4227.2,0.4641]
[1755865957206,12.90673868,4227.9,4226.8,0.02]
[1755865958010,2.36579999,4226.9,4226.8,0.02]
[1755865958335,8.55837999,4226.9,4226.8,0.02]
[1755865958539,3.23658,4226.9,4226.8,0.02]
[1755865958739,0.37024605,4226.9,4226.8,0.7409]
[1755865958907,4.50724605,4226.9,4226.8,0.7409]
[1755865959108,10.17534604,4226.9,4226.8,0.02]
[1755865959335,6.03734604,4226.9,4226.8,0.02]
[1755865959538,11.0156517,4226.9,4226.8,0.02]
[1755865959917,42.1312517,4226.9,4226.8,0.02]
[1755865960118,0.66,4226.7,4224.8,0.02]
[1755865960330,3.0,4226.5,4225.1,0.45206807]
[1755865960531,2.36631354,4226.0,4225.1,0.4284]
[1755865960712,3.0,4225.8,4224.8,0.02]
[1755865960912,5.66810788,4225.1,4224.8,0.02]
[1755865961243,6.12370788,4225.1,4224.8,0.02]
[1755865961645,3.0,4225.0,4224.8,1e-08]
[1755865961947,41.64321992,4224.9,4224.8,1e-08]
[1755865962143,12.09881992,4224.9,4224.8,1e-08]
[1755865962653,12.75881992,4224.9,4224.8,1e-08]
[1755865962837,42.09881992,4224.9,4224.8,1e-08]
[1755865963150,39.49342414,4224.9,4224.8,1e-08]
[1755865963364,34.54960422,4224.9,4224.8,1e-08]
[1755865963659,30.0,4224.9,4224.8,0.29250001]
[1755865963831,34.162,4224.9,4224.8,1e-08]
[1755865964018,4.53241249,4224.9,4224.8,1e-08]